bitfinex/quotes_BTCUSD_20250723
["timestamp","ask_amount","ask_price","bid_price","bid_amount"]
[1753305523031,1.60646809,118060.0,118050.0,1e-08]
[1753305527423,1.12524304,118060.0,118050.0,1e-08]
[1753305527642,1.6627594,118060.0,118050.0,1e-08]
[1753305528298,1.7519294,118060.0,118050.0,1e-08]
[1753305528503,1.7509294,118060.0,118050.0,1e-08]
[1753305528720,1.7529294,118060.0,118050.0,1e-08]
[1753305528949,1.7763994,118060.0,118050.0,1e-08]
[1753305529159,1.7783994,118060.0,118050.0,1e-08]
[1753305529371,1.04382601,118040.0,118030.0,0.0004]
[1753305529581,1.90342967,118040.0,118030.0,0.0004]
[1753305530011,1.95639967,118040.0,118030.0,1e-08]
[1753305531930,1.55472331,118040.0,118030.0,1e-08]
[1753305532223,0.58536973,118030.0,118020.0,0.0004]
[1753305532429,0.84274703,118030.0,118020.0,0.0004]
[1753305533071,1.24442339,118030.0,118020.0,0.0004]
[1753305533917,0.84274703,118030.0,118020.0,0.0004]
[1753305534149,1.24442339,118030.0,118020.0,0.0004]
[1753305535205,1.24442339,118030.0,118000.0,0.01976]
[1753305535206,0.99387338,118010.0,118000.0,0.01976]
[1753305535422,1.21642068,118010.0,118000.0,0.0004]
[1753305535626,1.62106704,118010.0,118000.0,0.0004]
[1753305535842,1.21939068,118010.0,118000.0,0.0004]
[1753305536531,1.62106704,118010.0,118000.0,0.00054766]
[1753305536973,1.78169565,118010.0,118000.0,0.00054766]
[1753305537208,0.96749133,118000.0,117990.0,0.0004]
[1753305537444,1.24308863,118000.0,117990.0,0.00044911]
[1753305537920,0.72798104,117990.0,117980.0,0.0004]
[1753305538159,1.79949503,117990.0,117980.0,4.924e-05]
[1753305538393,1.79949503,117990.0,117970.0,1e-08]
[1753305538394,0.66594513,117980.0,117970.0,1e-08]
[1753305538613,0.66594513,117980.0,117970.0,4.918e-05]
[1753305538614,1.43860419,117980.0,117970.0,4.918e-05]
[1753305538834,1.4688328,117980.0,117970.0,4.918e-05]
[1753305539060,1.4428101,117980.0,117970.0,4.918e-05]
[1753305539284,1.4428101,117980.0,117960.0,0.0004]
[1753305539285,1.03546022,117970.0,117960.0,0.00029157]
[1753305539512,1.57857658,117970.0,117960.0,0.00043937]
[1753305539791,1.76948007,117970.0,117960.0,0.00043937]
[1753305540010,1.78904007,117970.0,117960.0,0.00043937]
[1753305540255,1.17054371,117970.0,117960.0,0.00043937]
[1753305540496,0.8950917,117970.0,117960.0,0.20672836]
[1753305540723,0.56615052,117970.0,117960.0,0.03717937]
[1753305540951,0.90615052,117970.0,117960.0,0.03717937]
[1753305541181,0.92359954,117970.0,117960.0,0.03717937]
[1753305541659,0.92487954,117970.0,117960.0,0.20772836]
[1753305541889,0.92487954,117970.0,117960.0,0.03817937]
[1753305542115,0.92487954,117970.0,117960.0,0.01901937]
[1753305542372,0.92487954,117970.0,117960.0,0.00341937]
[1753305542373,1.07387954,117970.0,117960.0,0.00341937]
[1753305542603,1.07899954,117970.0,117960.0,0.00143937]
[1753305542825,1.12899954,117970.0,117960.0,0.00143937]
[1753305543052,1.62940871,117970.0,117960.0,0.00143937]
[1753305543501,1.65489471,117970.0,117960.0,0.00143937]
[1753305543990,1.65589471,117970.0,117960.0,0.00043937]
[1753305544680,1.26240824,117970.0,117960.0,0.00043937]
[1753305544912,1.26440824,117970.0,117960.0,0.00043937]
[1753305545143,1.75575086,117970.0,117960.0,1e-08]
[1753305545369,1.75475086,117970.0,117960.0,1e-08]
[1753305545828,1.75675086,117970.0,117960.0,1e-08]
[1753305546053,1.68912332,117970.0,117960.0,1e-08]
[1753305546291,1.68912332,117970.0,117940.0,0.0004]
[1753305546292,1.46835483,117950.0,117940.0,0.0004]
[1753305546514,1.74272213,117950.0,117940.0,0.0004]
[1753305546751,1.74595213,117950.0,117940.0,1e-08]
[1753305547936,0.61805649,117940.0,117930.0,0.0004]
[1753305548146,0.61805649,117940.0,117930.0,0.00054782]
[1753305548147,0.86342281,117940.0,117930.0,0.00054782]
[1753305548785,0.86682181,117940.0,117930.0,0.00054782]
[1753305549444,0.91363181,117940.0,117930.0,0.00257782]
[1753305549665,0.91162181,117940.0,117930.0,0.00257782]
[1753305549875,0.96023281,117940.0,117930.0,0.00257782]
[1753305550094,0.96346281,117940.0,117930.0,0.00054782]
[1753305550754,1.01346281,117940.0,117930.0,0.00054782]
[1753305551387,0.96346281,117940.0,117930.0,0.00054782]
[1753305552316,1.11346281,117940.0,117930.0,0.00154782]
[1753305554974,1.16346281,117940.0,117930.0,0.00154782]
[1753305555239,1.19626281,117940.0,117930.0,0.00154782]
[1753305555673,1.24711281,117940.0,117930.0,0.00154782]
[1753305555879,1.19626281,117940.0,117930.0,0.00154782]
[1753305557578,1.19966181,117940.0,117930.0,0.00154782]
[1753305558270,1.14966181,117940.0,117930.0,0.00154782]
[1753305558478,1.19966181,117940.0,117930.0,0.00154782]
[1753305559157,1.18306181,117940.0,117930.0,0.00154782]
[1753305559377,1.38682181,117940.0,117930.0,0.00154782]
[1753305559597,1.33682181,117940.0,117930.0,0.00154782]
[1753305559776,1.38682181,117940.0,117930.0,0.00154782]
[1753305560619,1.33682181,117940.0,117930.0,0.00154782]
[1753305560839,1.38682181,117940.0,117930.0,0.00154782]
[1753305561987,1.33682181,117940.0,117930.0,0.00154782]
[1753305562189,1.38682181,117940.0,117930.0,0.00154782]
[1753305563106,1.33682181,117940.0,117930.0,0.00154782]
[1753305563348,1.38682181,117940.0,117930.0,0.00154782]
[1753305563574,1.40192181,117940.0,117930.0,0.00154782]
[1753305564250,1.35192181,117940.0,117930.0,0.00154782]
[1753305564473,1.40192181,117940.0,117930.0,0.00154782]
[1753305564947,1.79540828,117940.0,117930.0,0.00154782]
[1753305565435,1.95064701,117940.0,117930.0,1e-08]
[1753305565921,2.00159701,117940.0,117930.0,1e-08]
[1753305566398,7.05159701,117940.0,117930.0,1e-08]
[1753305566625,6.64829312,117940.0,117930.0,1e-08]
[1753305566873,6.9953457,117940.0,117930.0,1e-08]
[1753305568220,6.9061757,117940.0,117930.0,1e-08]
[1753305569394,0.73552061,117930.0,117920.0,0.0004]
[1753305569582,1.3969218,117930.0,117920.0,0.0004]
[1753305569840,1.4469218,117930.0,117920.0,0.0004]
[1753305571791,1.4469218,117930.0,117920.0,1e-08]
[1753305573139,6.55317311,117930.0,117920.0,1e-08]
[1753305574071,6.55417311,117930.0,117920.0,1e-08]
[1753305574737,1.04403149,117910.0,117900.0,1e-08]
[1753305574998,1.70348268,117910.0,117900.0,1e-08]
[1753305575213,1.75348268,117910.0,117900.0,1e-08]
[1753305575440,1.75643268,117910.0,117900.0,1e-08]
[1753305575888,1.78193568,117910.0,117900.0,1e-08]
[1753305576606,1.39736703,117890.0,117880.0,0.00046]
[1753305576854,1.62227433,117890.0,117880.0,0.00095294]
[1753305577102,1.62522433,117890.0,117880.0,0.00095294]
[1753305577313,1.30412044,117890.0,117880.0,1e-08]
[1753305577566,1.75742433,117890.0,117880.0,1e-08]
[1753305579001,1.75842433,117890.0,117880.0,0.00100001]
[1753305579219,1.74192433,117890.0,117880.0,0.00100001]
[1753305579441,1.74192433,117890.0,117880.0,1e-08]
[1753305579667,1.75842433,117890.0,117880.0,1e-08]
[1753305580129,1.35512044,117890.0,117880.0,1e-08]
[1753305580346,1.75842433,117890.0,117880.0,1e-08]
[1753305580822,1.18157044,117890.0,117880.0,0.00212001]
[1753305581043,1.17065044,117890.0,117880.0,0.00212001]
[1753305581263,1.60290251,117890.0,117880.0,1e-08]
[1753305581706,6.68420251,117890.0,117880.0,1e-08]
[1753305581966,6.74045382,117890.0,117880.0,1e-08]
[1753305582193,0.8440948,117870.0,117860.0,0.03441]
[1753305582420,1.2714921,117870.0,117860.0,0.02047762]
[1753305582640,1.2714921,117870.0,117860.0,0.03637762]
[1753305582862,1.2969991,117870.0,117860.0,0.03637762]
[1753305584096,1.2969991,117870.0,117860.0,0.03837762]
[1753305584548,1.2969991,117870.0,117860.0,0.02247762]
[1753305584837,1.2969991,117870.0,117860.0,0.02447762]
[1753305585073,1.3019791,117870.0,117860.0,0.00414762]
[1753305585333,0.54411078,117860.0,117850.0,0.0311]
[1753305585549,0.98564148,117850.0,117840.0,0.03471]
[1753305585776,1.20927878,117850.0,117840.0,0.03687929]
[1753305587115,1.23950739,117850.0,117840.0,0.03687929]
[1753305587338,1.20927878,117850.0,117840.0,0.03687929]
[1753305588040,1.20927878,117850.0,117840.0,0.03787929]
[1753305588256,0.15854926,117850.0,117840.0,1.01320872]
[1753305588481,0.75048561,117850.0,117840.0,0.61090483]
[1753305588696,0.74888177,117850.0,117840.0,0.61939091]
[1753305588923,0.73191141,117850.0,117840.0,0.63536256]
[1753305589194,0.74039641,117850.0,117840.0,0.60990483]
[1753305589433,0.77481586,117850.0,117840.0,0.62039091]
[1753305589960,1.08603818,117850.0,117840.0,0.61190483]
[1753305590193,1.08603818,117850.0,117840.0,0.61590483]
[1753305590666,0.59087558,117850.0,117840.0,0.63287648]
[1753305590922,0.59936029,117850.0,117840.0,0.64136205]
[1753305591158,0.59087558,117850.0,117840.0,0.64136205]
[1753305591395,0.60784514,117850.0,117840.0,0.63216551]
[1753305591641,0.61633021,117850.0,117840.0,0.62367994]
[1753305591883,0.61633021,117850.0,117840.0,0.63216559]
[1753305592406,0.60784514,117850.0,117840.0,0.64065116]
[1753305592662,0.62481514,117850.0,117840.0,0.63216559]
[1753305592914,0.79452289,117850.0,117840.0,0.61519422]
[1753305593139,0.79452289,117850.0,117840.0,0.62368008]
[1753305593370,0.79452289,117850.0,117840.0,0.22957273]
[1753305593603,0.79452289,117850.0,117840.0,0.61519422]
[1753305594078,0.76906804,117850.0,117840.0,0.43698664]
[1753305594318,0.76906804,117850.0,117840.0,0.22108695]
[1753305594552,0.76906804,117850.0,117840.0,0.22957281]
[1753305594801,0.76906804,117850.0,117840.0,0.2380586]
[1753305595297,0.76906804,117850.0,117840.0,0.22108695]
[1753305595585,0.76058283,117850.0,117840.0,0.21260094]
[1753305595847,0.76058283,117850.0,117840.0,0.43698664]
[1753305596394,0.76058283,117850.0,117840.0,0.04287929]
[1753305598021,0.59936087,117850.0,117840.0,0.21260094]
[1753305598285,0.77755319,117850.0,117840.0,0.61519437]
[1753305598539,0.76906812,117850.0,117840.0,0.43698664]
[1753305599583,0.62866812,117850.0,117840.0,0.43698664]
[1753305599868,0.76922812,117850.0,117840.0,0.43698664]
[1753305600131,0.76922812,117850.0,117840.0,0.04287929]
[1753305601469,0.76922812,117850.0,117840.0,0.00644929]
[1753305601470,0.92125812,117850.0,117840.0,0.00644929]
[1753305601751,0.92420812,117850.0,117840.0,0.00644929]
[1753305602582,0.92420812,117850.0,117840.0,0.00044929]
[1753305603310,0.92420812,117850.0,117840.0,0.00244929]
[1753305603488,0.92420812,117850.0,117840.0,0.00444929]
[1753305603709,0.95580812,117850.0,117840.0,0.00444929]
[1753305606313,0.94060812,117850.0,117840.0,0.00044929]
[1753305606786,0.94060812,117850.0,117840.0,0.00244929]
[1753305607226,0.98161912,117850.0,117840.0,0.00244929]
[1753305607682,0.96611912,117850.0,117840.0,0.00244929]
[1753305608405,0.98161912,117850.0,117840.0,0.00244929]
[1753305609083,0.98161912,117850.0,117810.0,0.05505]
[1753305609084,0.65417401,117820.0,117810.0,0.05505]
[1753305609337,0.87949131,117820.0,117810.0,0.05720923]
[1753305609563,0.87949131,117820.0,117810.0,0.06037923]
[1753305609789,0.88153131,117820.0,117810.0,0.04447923]
[1753305610011,0.88153131,117820.0,117810.0,0.04130923]
[1753305611022,1.22153131,117820.0,117810.0,0.04130923]
[1753305611647,1.22153131,117820.0,117810.0,0.04430923]
[1753305612092,1.22153131,117820.0,117810.0,0.04130923]
[1753305612820,1.22153131,117820.0,117810.0,0.04230923]
[1753305615093,1.22455131,117820.0,117810.0,0.04019923]
[1753305615313,1.25595131,117820.0,117810.0,0.04019923]
[1753305615819,1.25595131,117820.0,117780.0,0.08342754]
[1753305615820,0.98573226,117790.0,117780.0,0.03487]
[1753305616012,1.21088956,117790.0,117780.0,0.44103728]
[1753305618346,1.21088956,117790.0,117780.0,0.44403728]
[1753305618783,1.21088956,117790.0,117780.0,0.02472766]
[1753305619008,1.61985918,117790.0,117780.0,0.00314766]
[1753305619217,1.65115918,117790.0,117780.0,0.00314766]
[1753305619444,1.65115918,117790.0,117780.0,0.00514766]
[1753305619445,1.67668318,117790.0,117780.0,0.00514766]
[1753305619856,1.27277356,117790.0,117780.0,0.00314766]
[1753305620904,1.67668318,117790.0,117780.0,0.00014766]
[1753305621321,1.67668318,117790.0,117780.0,0.00314766]
[1753305624701,1.23869356,117790.0,117780.0,0.00525766]
[1753305624914,1.23665356,117790.0,117780.0,0.00842766]
[1753305625128,1.23869356,117790.0,117780.0,0.00525766]
[1753305625354,1.24171356,117790.0,117780.0,0.00525766]
[1753305625568,1.08677371,117790.0,117780.0,0.42773728]
[1753305625779,0.40943516,117790.0,117780.0,0.6389158]
[1753305625995,0.40943516,117790.0,117780.0,0.6474057]
[1753305625996,0.39245558,117790.0,117780.0,0.6474057]
[1753305626212,0.3755173,117790.0,117780.0,0.6474057]
[1753305626448,0.15,117790.0,117780.0,0.6474057]
[1753305626687,0.21244831,117800.0,117790.0,0.22726188]
[1753305626919,0.34504,117800.0,117790.0,1.03719112]
[1753305627136,0.22093669,117800.0,117790.0,1.04036112]
[1753305627359,0.68504,117800.0,117790.0,0.62692005]
[1753305627581,0.69352845,117800.0,117790.0,0.62692005]
[1753305627807,0.35356838,117800.0,117790.0,0.62692005]
[1753305628038,0.38799474,117800.0,117790.0,0.63192005]
[1753305628310,0.90626284,117800.0,117790.0,0.04228]
[1753305628531,0.88928586,117800.0,117790.0,0.63492055]
[1753305628761,0.8723083,117800.0,117790.0,0.04528]
[1753305628990,1.1067856,117800.0,117790.0,0.04528]
[1753305629446,1.1088256,117800.0,117790.0,0.01011]
[1753305629664,1.1088256,117800.0,117790.0,0.008]
[1753305629665,1.1118456,117800.0,117790.0,0.008]
[1753305630109,1.1373666,117800.0,117790.0,0.008]
[1753305630333,0.83573226,117790.0,117780.0,0.01871766]
[1753305630557,1.06144956,117790.0,117780.0,0.02082766]
[1753305631895,0.92020956,117790.0,117780.0,0.02682766]
[1753305632195,0.49848903,117790.0,117780.0,0.62988428]
[1753305632445,0.63968903,117790.0,117780.0,0.62988428]
[1753305632676,0.6571382,117790.0,117780.0,0.62988428]
[1753305632919,0.6312,117790.0,117780.0,0.62988428]
[1753305633197,0.4812,117790.0,117780.0,0.62988428]
[1753305633428,0.15,117810.0,117780.0,0.68308272]
[1753305633658,0.02546198,117820.0,117810.0,0.22802865]
[1753305633879,0.02546198,117820.0,117810.0,0.42920817]
[1753305633880,0.76096974,117820.0,117810.0,0.42920817]
[1753305634104,0.75248258,117820.0,117810.0,0.43231817]
[1753305634543,0.76144423,117820.0,117810.0,0.43231817]
[1753305634810,0.74403521,117820.0,117810.0,0.43231817]
[1753305635249,0.76148423,117820.0,117810.0,0.03794]
[1753305635472,0.76148423,117820.0,117810.0,0.43231817]
[1753305637310,0.76148423,117820.0,117810.0,0.03794]
[1753305637495,0.76148423,117820.0,117810.0,0.43231817]
[1753305637715,0.76148423,117820.0,117810.0,0.43331817]
[1753305638138,0.76148423,117820.0,117810.0,0.00614]
[1753305638139,0.62016423,117820.0,117810.0,0.00614]
[1753305638352,0.76144423,117820.0,117810.0,0.00614]
[1753305638586,0.76144423,117820.0,117810.0,0.00714]
[1753305639020,0.76144423,117820.0,117810.0,0.02344]
[1753305639667,0.62016423,117820.0,117810.0,0.41781817]
[1753305639910,0.76136423,117820.0,117810.0,0.41781817]
[1753305640459,0.76136423,117820.0,117810.0,0.43441817]
[1753305640667,0.67688693,117820.0,117810.0,0.61267128]
[1753305640894,0.35744902,117820.0,117810.0,0.62115937]
[1753305641099,0.69394117,117820.0,117810.0,0.6381352]
[1753305641338,0.53267801,117820.0,117810.0,0.64662301]
[1753305641548,0.50721603,117820.0,117810.0,0.6466225]
[1753305641838,0.7025484,117820.0,117810.0,0.62964696]
[1753305642044,0.7025484,117820.0,117810.0,0.62115908]
[1753305642252,0.51582312,117820.0,117810.0,0.62964681]
[1753305642418,0.50733603,117820.0,117810.0,0.62964681]
[1753305642620,0.51582319,117820.0,117810.0,0.62964681]
[1753305642855,0.50733603,117820.0,117810.0,0.62964681]
[1753305643568,0.70254854,117820.0,117810.0,0.62115908]
[1753305643793,0.70254854,117820.0,117810.0,0.62764696]
[1753305643994,0.93279779,117820.0,117810.0,0.61915901]
[1753305644207,0.92431042,117820.0,117810.0,0.62964674]
[1753305644434,0.91582319,117820.0,117810.0,0.63164674]
[1753305644668,0.92431056,117820.0,117810.0,0.63164674]
[1753305644891,0.52431056,117820.0,117810.0,0.23726857]
[1753305645126,0.52431056,117820.0,117810.0,0.63164674]
[1753305645332,0.50733603,117820.0,117810.0,0.63164674]
[1753305645759,0.51582319,117820.0,117810.0,0.63164674]
[1753305645976,0.50733603,117820.0,117810.0,0.63164674]
[1753305646215,0.52431042,117820.0,117810.0,0.63164674]
[1753305646446,0.52431035,117820.0,117810.0,0.63164674]
[1753305646678,0.53279772,117820.0,117810.0,0.63164674]
[1753305646920,0.7110357,117820.0,117810.0,0.62315901]
[1753305647436,0.52431035,117820.0,117810.0,0.63164682]
[1753305647666,0.51582312,117820.0,117810.0,0.64013455]
[1753305647906,0.52431042,117820.0,117810.0,0.64013455]
[1753305648360,0.51582312,117820.0,117810.0,0.64013455]
[1753305648613,0.51582319,117820.0,117810.0,0.64013455]
[1753305648850,0.49884902,117820.0,117810.0,0.64013455]
[1753305651153,0.025509,117840.0,117830.0,0.05585953]
[1753305651385,0.025509,117840.0,117830.0,0.62412546]
[1753305651612,0.1412,117840.0,117830.0,0.62511376]
[1753305651847,0.14968543,117840.0,117830.0,0.61662747]
[1753305652069,0.68646821,117840.0,117830.0,0.62511384]
[1753305652307,0.70231339,117840.0,117830.0,0.62511384]
[1753305652549,0.52410567,117840.0,117830.0,0.63460013]
[1753305652765,0.4812,117840.0,117830.0,0.63360013]
[1753305653198,0.49864902,117840.0,117830.0,0.63560013]
[1753305653630,0.50713445,117840.0,117830.0,0.63560013]
[1753305653898,0.50713445,117840.0,117830.0,0.63660013]
[1753305654118,0.52410581,117840.0,117830.0,0.63660013]
[1753305654333,0.50713445,117840.0,117830.0,0.63560013]
[1753305654553,0.52410581,117840.0,117830.0,0.63560013]
[1753305655003,0.53259174,117840.0,117830.0,0.63560013]
[1753305656288,0.53271174,117840.0,117830.0,0.63560013]
[1753305656516,0.52422581,117840.0,117830.0,0.24122196]
[1753305656743,0.71091947,117840.0,117830.0,0.63660013]
[1753305656966,0.70243404,117840.0,117830.0,0.62811384]
[1753305657223,0.51574038,117840.0,117830.0,0.63660013]
[1753305657456,0.48132,117840.0,117830.0,0.63660013]
[1753305657706,0.4898055,117840.0,117830.0,0.63660013]
[1753305657925,0.50677687,117840.0,117830.0,0.63660013]
[1753305658137,0.49829115,117840.0,117830.0,0.63660013]
[1753305658347,0.4898055,117840.0,117830.0,0.63660013]
[1753305658799,0.49829115,117840.0,117830.0,0.63660013]
[1753305659013,0.4898055,117840.0,117830.0,0.63660013]
[1753305659256,0.4898055,117840.0,117830.0,0.64578841]
[1753305659463,0.48132,117840.0,117830.0,0.64578841]
[1753305659680,0.49829108,117840.0,117830.0,1.04935486]
[1753305659890,0.51526287,117840.0,117830.0,1.04935486]
[1753305660417,0.66801344,117840.0,117830.0,0.44210645]
[1753305660641,0.80726976,117840.0,117830.0,0.003]
[1753305660861,0.8748973,117840.0,117830.0,0.003]
[1753305661307,1.0248973,117840.0,117830.0,0.003]
[1753305661519,1.0504083,117840.0,117830.0,0.003]
[1753305661736,0.98278076,117840.0,117830.0,0.002]
[1753305661942,0.98278076,117840.0,117830.0,0.003]
[1753305662627,0.98278076,117840.0,117830.0,0.002]
[1753305664600,0.84417401,117820.0,117810.0,0.39432447]
[1753305664821,0.98565401,117820.0,117810.0,0.566267]
[1753305665039,0.98565401,117820.0,117810.0,0.57795517]
[1753305665260,0.97716685,117820.0,117810.0,0.39970213]
[1753305665946,0.97716685,117820.0,117810.0,0.58844341]
[1753305666150,0.97716685,117820.0,117810.0,0.61513136]
[1753305666366,0.97716685,117820.0,117810.0,0.60664341]
[1753305666834,0.97716685,117820.0,117810.0,0.61513143]
[1753305667275,0.97716685,117820.0,117810.0,0.59815517]
[1753305667490,0.97716685,117820.0,117810.0,0.60664326]
[1753305667722,0.98565401,117820.0,117810.0,0.63153121]
[1753305668178,0.98565401,117820.0,117810.0,0.64001909]
[1753305668411,0.50717589,117820.0,117810.0,0.64850646]
[1753305668637,0.34,117820.0,117810.0,0.64850646]
[1753305668855,0.49848565,117840.0,117830.0,0.22689544]
[1753305669086,0.64817108,117840.0,117830.0,0.62644991]
[1753305669341,0.6825919,117840.0,117830.0,0.63493628]
[1753305669548,0.68259182,117840.0,117830.0,0.63493628]
[1753305669767,0.6656201,117840.0,117830.0,0.63493628]
[1753305669977,0.65713445,117840.0,117830.0,0.63493628]
[1753305670182,0.67410567,117840.0,117830.0,0.63493628]
[1753305670408,0.68259124,117840.0,117830.0,0.63493628]
[1753305670664,0.67410552,117840.0,117830.0,0.63493628]
[1753305670883,0.65717445,117840.0,117830.0,0.63493628]
[1753305671101,0.52441995,117840.0,117830.0,0.63493628]
[1753305671333,0.65701452,117840.0,117830.0,0.63493628]
[1753305671533,0.35744902,117840.0,117830.0,0.63493628]
[1753305671739,0.51650009,117840.0,117830.0,0.63493628]
[1753305671953,0.50801452,117840.0,117830.0,0.63493628]
[1753305672176,0.341,117840.0,117830.0,0.63493628]
[1753305672381,0.48104,117840.0,117830.0,0.63493628]
[1753305672601,0.48104,117840.0,117830.0,0.63693628]
[1753305673051,0.49801122,117840.0,117830.0,0.63693628]
[1753305673266,0.50649708,117840.0,117830.0,0.63693628]
[1753305673482,0.68470466,117840.0,117830.0,0.62844999]
[1753305673836,0.68470466,117840.0,117830.0,0.60299053]
[1753305674070,0.69319067,117840.0,117830.0,0.43325447]
[1753305674311,0.69875869,117840.0,117830.0,0.17173606]
[1753305674506,0.69027276,117840.0,117830.0,0.002]
[1753305674953,0.68728276,117840.0,117830.0,0.00403]
[1753305675602,0.68728276,117840.0,117830.0,0.1992261]
[1753305675827,0.48104,117840.0,117830.0,0.61185071]
[1753305676066,0.48104,117840.0,117830.0,0.68583727]
[1753305676067,0.49785108,117840.0,117830.0,0.68583727]
[1753305676284,0.49785108,117840.0,117830.0,0.64692351]
[1753305676494,0.49785093,117840.0,117830.0,0.64692351]
[1753305676697,0.48088,117840.0,117830.0,0.64692351]
[1753305676901,0.481,117840.0,117830.0,0.64692351]
[1753305677112,0.481,117840.0,117830.0,0.67952162]
[1753305677532,0.481,117840.0,117830.0,0.64692351]
[1753305678139,0.141,117840.0,117830.0,0.64692351]
[1753305682606,0.141,117840.0,117830.0,0.73140081]
[1753305682827,0.54392,117860.0,117850.0,0.22646246]
[1753305683049,0.68492,117860.0,117850.0,0.62281693]
[1753305683262,0.69340406,117860.0,117850.0,0.62601693]
[1753305683477,0.68492,117860.0,117850.0,0.62601693]
[1753305684123,0.71037283,117860.0,117850.0,0.62601693]
[1753305684778,0.88859612,117860.0,117850.0,0.43085447]
[1753305684996,0.86309734,117860.0,117850.0,0.43285447]
[1753305685222,0.86309734,117860.0,117850.0,0.60353237]
[1753305685672,0.86309734,117860.0,117850.0,0.01571536]
[1753305685887,0.88563636,117860.0,117850.0,0.002]
[1753305686108,0.88563636,117860.0,117850.0,0.003]
[1753305687203,0.91723636,117860.0,117850.0,0.003]
[1753305687625,0.92554807,117860.0,117850.0,0.003]
[1753305688269,1.07554807,117860.0,117850.0,0.003]
[1753305689555,1.07554807,117860.0,117850.0,0.002]
[1753305689812,1.07554807,117860.0,117850.0,0.003]
[1753305690021,1.07554807,117860.0,117850.0,0.001]
[1753305690280,1.07554807,117860.0,117850.0,0.002]
[1753305691609,0.69392,117860.0,117850.0,0.59976172]
[1753305691854,0.1851032,117880.0,117870.0,0.18664593]
[1753305691855,0.01696532,117880.0,117870.0,0.18664593]
[1753305692054,0.51431853,117880.0,117870.0,0.59148396]
[1753305692273,0.52328442,117880.0,117870.0,0.5830004]
[1753305692491,0.70353161,117880.0,117870.0,0.58300069]
[1753305692673,0.53386755,117880.0,117870.0,0.59996788]
[1753305692932,0.37666151,117880.0,117870.0,0.60845129]
[1753305693143,0.51686143,117880.0,117870.0,0.60845129]
[1753305693367,0.52641486,117880.0,117870.0,0.60845129]
[1753305693577,0.5327577,117880.0,117870.0,0.61158129]
[1753305693817,0.54972374,117880.0,117870.0,0.61158129]
[1753305694260,0.71090525,117880.0,117870.0,0.59461439]
[1753305694480,0.71090525,117880.0,117870.0,0.60309802]
[1753305694673,0.71303525,117880.0,117870.0,0.59996802]
[1753305695126,0.70455256,117880.0,117870.0,0.59996802]
[1753305695337,0.70455256,117880.0,117870.0,0.59148439]
[1753305695770,0.70555256,117880.0,117870.0,0.59148439]
[1753305695983,0.69706972,117880.0,117870.0,0.59148439]
[1753305696198,0.69706972,117880.0,117870.0,0.19715992]
[1753305696682,0.69706972,117880.0,117870.0,0.20564355]
[1753305697114,0.69706972,117880.0,117870.0,0.19715992]
[1753305697333,0.52527522,117880.0,117870.0,0.21406696]
[1753305697556,0.53375827,117880.0,117870.0,0.23309696]
[1753305697794,0.5337582,117880.0,117870.0,0.62681963]
[1753305698025,0.52527522,117880.0,117870.0,0.62681963]
[1753305698240,0.49898315,117880.0,117870.0,0.62681963]
[1753305698473,0.49898315,117880.0,117870.0,0.64311963]
[1753305699145,0.00214717,117880.0,117870.0,0.64311963]
[1753305699375,0.14190717,117880.0,117870.0,0.64311963]
[1753305700048,0.14090717,117880.0,117870.0,0.64311963]
[1753305700284,0.13990717,117880.0,117870.0,0.64311963]
[1753305700733,0.13990717,117880.0,117870.0,0.72759693]
[1753305700924,0.13990717,117880.0,117870.0,0.81207423]
[1753305701875,0.13990717,117880.0,117870.0,0.81407423]
[1753305702119,0.00014717,117880.0,117870.0,0.33727246]
[1753305702363,0.00014717,117880.0,117870.0,0.601907]
[1753305702364,0.02337815,117880.0,117870.0,0.601907]
[1753305702586,0.69107309,117890.0,117880.0,0.17814719]
[1753305702813,0.50671358,117890.0,117880.0,0.1866301]
[1753305703041,0.69332821,117890.0,117880.0,0.1866301]
[1753305703275,0.01696575,117880.0,117870.0,0.59109967]
[1753305703501,0.22317508,117880.0,117870.0,0.19364607]
[1753305703734,0.21769231,117880.0,117870.0,0.1811623]
[1753305703960,0.21769231,117880.0,117870.0,0.003]
[1753305703961,0.61769231,117880.0,117870.0,0.003]
[1753305704186,0.60920933,117880.0,117870.0,0.003]
[1753305704419,0.98100933,117880.0,117870.0,0.003]
[1753305705600,0.20409509,117870.0,117860.0,0.56401732]
[1753305705819,0.35422865,117870.0,117860.0,0.57447181]
[1753305706246,0.35422865,117870.0,117860.0,0.18863176]
[1753305706493,0.35422865,117870.0,117860.0,0.59144052]
[1753305706700,0.17606592,117870.0,117860.0,0.19711575]
[1753305706924,0.17606592,117870.0,117860.0,0.59144022]
[1753305707139,0.18454969,117870.0,117860.0,0.59144022]
[1753305707370,0.18241962,117870.0,117860.0,0.59657022]
[1753305707582,0.16545243,117870.0,117860.0,0.62241811]
[1753305708014,0.15696902,117870.0,117860.0,0.61217022]
[1753305708244,0.49672902,117870.0,117860.0,0.62797022]
[1753305708457,0.35744902,117870.0,117860.0,0.37488575]
[1753305708685,0.36593229,117870.0,117860.0,0.37488575]
[1753305708902,0.3744157,117870.0,117860.0,0.76921022]
[1753305710441,0.38289926,117870.0,117860.0,0.76921022]
[1753305710653,0.3744157,117870.0,117860.0,0.76921022]
[1753305710870,0.38289926,117870.0,117860.0,0.76921022]
[1753305711072,0.3744157,117870.0,117860.0,0.76921022]
[1753305711516,0.55770821,117870.0,117860.0,0.58498631]
[1753305711784,0.55770821,117870.0,117860.0,0.73251052]
[1753305712009,0.56319213,117870.0,117860.0,0.73448052]
[1753305712510,0.56319213,117870.0,117860.0,0.72599631]
[1753305712752,0.55470872,117870.0,117860.0,0.73448066]
[1753305713229,0.37441592,117870.0,117860.0,0.76156238]
[1753305713471,0.56106184,117870.0,117860.0,0.74609479]
[1753305713708,0.56319242,117870.0,117860.0,0.73448066]
[1753305713956,0.34,117870.0,117860.0,0.86237209]
[1753305714425,0.32341846,117890.0,117870.0,0.22692934]
[1753305714426,0.35744902,117880.0,117870.0,0.22692934]
[1753305714685,0.35744902,117880.0,117870.0,0.62322381]
[1753305714946,0.35744902,117880.0,117870.0,0.62635381]
[1753305715152,0.55637451,117890.0,117880.0,0.21101279]
[1753305715371,0.55637451,117890.0,117880.0,0.76200726]
[1753305715641,0.89637451,117890.0,117880.0,0.76513726]
[1753305715881,0.35757451,117890.0,117880.0,0.76513726]
[1753305716317,0.37453868,117890.0,117880.0,0.81468456]
[1753305716538,0.38515109,117890.0,117880.0,0.81468464]
[1753305716760,0.55780076,117890.0,117880.0,0.3274801]
[1753305716998,0.56628324,117890.0,117880.0,0.20556571]
[1753305717218,0.70512324,117890.0,117880.0,0.20556571]
[1753305717669,0.70512324,117890.0,117880.0,0.19708294]
[1753305717875,0.69664126,117890.0,117880.0,0.18860024]
[1753305718088,0.69664126,117890.0,117880.0,0.19708315]
[1753305718460,0.69660126,117890.0,117880.0,0.19708315]
[1753305718684,0.69660126,117890.0,117880.0,0.59140762]